[Event "Titled Tuesday Blitz June 28 Late 2022"]
[White "Lucas, Arthur"]
[Black "Clawitter, Craig"]
[WhiteFideId "26093073"]
[BlackFideId "2023105"]
[WhiteElo "2129"]
[BlackElo "2226"]
[Result "0-1"]
[Round "02"]
[TimeControl "180+1"]
[Date "2022.06.29"]
[WhiteClock "0:00:01"]
[BlackClock "0:00:01"]

1. Nf3 {[%clk 0:03:00]}  Nf6 {[%clk 0:02:59]} 2. b3 {[%clk 0:03:00]}  g6 {[%clk 0:02:57]} 3. Bb2 {[%clk 0:02:59]}  Bg7 {[%clk 0:02:57]} 4. g3 {[%clk 0:02:58]}  O-O {[%clk 0:02:58]} 5. Bg2 {[%clk 0:02:58]}  c5 {[%clk 0:02:59]} 6. O-O {[%clk 0:02:56]}  Nc6 {[%clk 0:02:59]} 7. d3 {[%clk 0:02:56]}  d6 {[%clk 0:02:57]} 8. e4 {[%clk 0:02:55]}  Rb8 {[%clk 0:02:52]} 9. Nbd2 {[%clk 0:02:53]}  b5 {[%clk 0:02:50]} 10. Nh4 {[%clk 0:02:38]}  Ne8 {[%clk 0:02:40]} 11. Bxg7 {[%clk 0:02:36]}  Nxg7 {[%clk 0:02:41]} 12. f4 {[%clk 0:02:36]}  b4 {[%clk 0:02:18]} 13. e5 {[%clk 0:02:05]}  Nd4 {[%clk 0:02:16]} 14. Ndf3 {[%clk 0:02:01]}  Ngf5 {[%clk 0:02:04]} 15. Nxf5 {[%clk 0:01:59]}  Bxf5 {[%clk 0:01:56]} 16. Nh4 {[%clk 0:01:44]}  dxe5 {[%clk 0:01:44]} 17. fxe5 {[%clk 0:01:45]}  Be6 {[%clk 0:01:29]} 18. Qd2 {[%clk 0:01:37]}  Qd7 {[%clk 0:01:24]} 19. Rae1 {[%clk 0:01:35]}  a5 {[%clk 0:01:18]} 20. Rf2 {[%clk 0:01:28]}  a4 {[%clk 0:01:18]} 21. Qh6 {[%clk 0:01:28]}  Bd5 {[%clk 0:00:59]} 22. Bxd5 {[%clk 0:01:16]}  Qxd5 {[%clk 0:00:59]} 23. Re4 {[%clk 0:01:16]}  axb3 {[%clk 0:00:48]} 24. axb3 {[%clk 0:01:17]}  Ra8 {[%clk 0:00:47]} 25. h3 {[%clk 0:01:05]}  Ra1+ {[%clk 0:00:43]} 26. Kh2 {[%clk 0:01:05]}  Ra2 {[%clk 0:00:40]} 27. e6 {[%clk 0:00:15]}  Rxc2 {[%clk 0:00:22]} 28. exf7+ {[%clk 0:00:09]}  Rxf7 {[%clk 0:00:21]} 29. Rxc2 {[%clk 0:00:08]}  Nxc2 {[%clk 0:00:19]} 30. Qd2 {[%clk 0:00:04]}  Nd4 {[%clk 0:00:15]} 31. Qe3 {[%clk 0:00:02]}  Qxb3 {[%clk 0:00:11]} 32. Rxe7 {[%clk 0:00:02]}  Qc2+ {[%clk 0:00:08]} 33. Ng2 {[%clk 0:00:02]}  Nf3+ {[%clk 0:00:05]} 34. Kh1 {[%clk 0:00:01]}  Qd1+ {[%clk 0:00:05]} 35. Ne1 {[%clk 0:00:02]}  Nxe1 {[%clk 0:00:03]} 36. Qxe1 {[%clk 0:00:03]}  Qxe1+ {[%clk 0:00:03]} 37. Rxe1 {[%clk 0:00:04]}  Rf3 {[%clk 0:00:03]} 38. Re8+ {[%clk 0:00:02]}  Kf7 {[%clk 0:00:02]} 39. Rc8 {[%clk 0:00:03]}  Rxd3 {[%clk 0:00:02]} 40. Rxc5 {[%clk 0:00:03]}  b3 {[%clk 0:00:03]} 41. Kg2 {[%clk 0:00:03]}  b2 {[%clk 0:00:03]} 42. Rb5 {[%clk 0:00:03]}  Rd2+ {[%clk 0:00:04]} 43. Kf3 {[%clk 0:00:03]}  Rc2 {[%clk 0:00:04]} 44. g4 {[%clk 0:00:02]}  h6 {[%clk 0:00:03]} 45. h4 {[%clk 0:00:03]}  Kf6 {[%clk 0:00:03]} 46. g5+ {[%clk 0:00:02]}  hxg5 {[%clk 0:00:03]} 47. hxg5+ {[%clk 0:00:03]}  Ke6 {[%clk 0:00:03]} 48. Ke4 {[%clk 0:00:03]}  Re2+ {[%clk 0:00:02]} 49. Kd3 {[%clk 0:00:02]}  Rg2 {[%clk 0:00:02]} 50. Ke4 {[%clk 0:00:01]}  Rxg5 {[%clk 0:00:01]} 0-1


[Site "https://www.chess.com"]

[Event "Titled Tuesday Blitz June 28 Late 2022"]
[White "Mangialardo, Tiago Carvalho"]
[Black "Nilsson, Joakim"]
[WhiteFideId "2130718"]
[BlackFideId "1723383"]
[WhiteElo "2074"]
[BlackElo "2210"]
[Result "0-1"]
[Round "02"]
[TimeControl "180+1"]
[Date "2022.06.29"]
[WhiteClock "0:00:57"]
[BlackClock "0:01:54"]

1. e4 {[%clk 0:03:00]}  c5 {[%clk 0:03:00]} 2. Nf3 {[%clk 0:03:00]}  d6 {[%clk 0:02:59]} 3. d4 {[%clk 0:02:59]}  cxd4 {[%clk 0:03:00]} 4. Nxd4 {[%clk 0:03:00]}  Nf6 {[%clk 0:02:48]} 5. Nc3 {[%clk 0:03:00]}  a6 {[%clk 0:02:48]} 6. Be3 {[%clk 0:02:57]}  e5 {[%clk 0:02:48]} 7. Nb3 {[%clk 0:02:56]}  Be6 {[%clk 0:02:48]} 8. Qd2 {[%clk 0:02:51]}  Be7 {[%clk 0:02:48]} 9. Be2 {[%clk 0:02:51]}  Nbd7 {[%clk 0:02:48]} 10. f4 {[%clk 0:02:21]}  exf4 {[%clk 0:02:39]} 11. Bxf4 {[%clk 0:02:22]}  Ne5 {[%clk 0:02:38]} 12. O-O-O {[%clk 0:01:51]}  Qc7 {[%clk 0:02:33]} 13. Nd5 {[%clk 0:01:41]}  Bxd5 {[%clk 0:02:30]} 14. exd5 {[%clk 0:01:42]}  Nfd7 {[%clk 0:02:22]} 15. Nd4 {[%clk 0:01:26]}  O-O {[%clk 0:02:20]} 16. Nf5 {[%clk 0:01:19]}  Bf6 {[%clk 0:02:19]} 17. Bg5 {[%clk 0:01:19]}  Rac8 {[%clk 0:02:16]} 18. c3 {[%clk 0:01:10]}  Rfe8 {[%clk 0:02:04]} 19. Bxf6 {[%clk 0:01:05]}  Nxf6 {[%clk 0:02:05]} 20. Qg5 {[%clk 0:01:01]}  Ng6 {[%clk 0:02:05]} 21. h4 {[%clk 0:01:01]}  Rxe2 {[%clk 0:02:02]} 22. h5 {[%clk 0:01:01]}  Ne4 {[%clk 0:01:54]} 23. Qg4 {[%clk 0:00:57]}  Nxc3 {[%clk 0:01:54]} 0-1


[Site "https://www.chess.com"]

[Event "Titled Tuesday Blitz June 28 Late 2022"]
[White "Martinez, Shawn"]
[Black "Korchmar, Vasiliy"]
[WhiteFideId "2039770"]
[BlackFideId "24131750"]
[WhiteElo "2339"]
[BlackElo "2697"]
[Result "0-1"]
[Round "02"]
[TimeControl "180+1"]
[Date "2022.06.29"]
[WhiteClock "0:00:01"]
[BlackClock "0:00:09"]

1. e4 {[%clk 0:03:00]}  c5 {[%clk 0:03:00]} 2. Nc3 {[%clk 0:03:00]}  d6 {[%clk 0:03:00]} 3. Bb5+ {[%clk 0:02:56]}  Nd7 {[%clk 0:02:59]} 4. f4 {[%clk 0:02:56]}  e6 {[%clk 0:02:48]} 5. Nf3 {[%clk 0:02:49]}  Nf6 {[%clk 0:02:48]} 6. O-O {[%clk 0:02:47]}  a6 {[%clk 0:02:45]} 7. Bxd7+ {[%clk 0:02:35]}  Bxd7 {[%clk 0:02:46]} 8. d4 {[%clk 0:02:31]}  cxd4 {[%clk 0:02:45]} 9. Nxd4 {[%clk 0:02:23]}  Qc7 {[%clk 0:02:44]} 10. f5 {[%clk 0:02:10]}  Be7 {[%clk 0:02:39]} 11. Qd3 {[%clk 0:01:54]}  O-O {[%clk 0:02:36]} 12. Bg5 {[%clk 0:01:48]}  b5 {[%clk 0:02:31]} 13. a3 {[%clk 0:01:45]}  Rab8 {[%clk 0:02:13]} 14. h3 {[%clk 0:01:34]}  a5 {[%clk 0:02:11]} 15. b4 {[%clk 0:01:28]}  Rfc8 {[%clk 0:01:58]} 16. Rf3 {[%clk 0:01:17]}  h6 {[%clk 0:01:47]} 17. Bh4 {[%clk 0:01:02]}  Qa7 {[%clk 0:01:38]} 18. Bf2 {[%clk 0:00:44]}  Qa8 {[%clk 0:00:46]} 19. fxe6 {[%clk 0:00:35]}  fxe6 {[%clk 0:00:45]} 20. Rb1 {[%clk 0:00:31]}  axb4 {[%clk 0:00:45]} 21. axb4 {[%clk 0:00:30]}  Rxc3 {[%clk 0:00:25]} 22. Qxc3 {[%clk 0:00:27]}  Nxe4 {[%clk 0:00:25]} 23. Qe3 {[%clk 0:00:25]}  Bg5 {[%clk 0:00:24]} 24. Qd3 {[%clk 0:00:20]}  Nd2 {[%clk 0:00:25]} 25. Re1 {[%clk 0:00:18]}  Nxf3+ {[%clk 0:00:25]} 26. Nxf3 {[%clk 0:00:19]}  Be7 {[%clk 0:00:21]} 27. Bg3 {[%clk 0:00:18]}  Qc6 {[%clk 0:00:20]} 28. Rd1 {[%clk 0:00:16]}  Rd8 {[%clk 0:00:19]} 29. Nd4 {[%clk 0:00:13]}  Qc4 {[%clk 0:00:17]} 30. Nb3 {[%clk 0:00:12]}  Qxd3 {[%clk 0:00:14]} 31. Rxd3 {[%clk 0:00:13]}  Bc6 {[%clk 0:00:12]} 32. Na5 {[%clk 0:00:13]}  Bd5 {[%clk 0:00:12]} 33. Bf2 {[%clk 0:00:10]}  Rc8 {[%clk 0:00:11]} 34. c3 {[%clk 0:00:10]}  Bf6 {[%clk 0:00:10]} 35. Bd4 {[%clk 0:00:10]}  Bd8 {[%clk 0:00:10]} 36. g4 {[%clk 0:00:05]}  Ra8 {[%clk 0:00:10]} 37. Kf2 {[%clk 0:00:04]}  Bxa5 {[%clk 0:00:10]} 38. bxa5 {[%clk 0:00:05]}  Rxa5 {[%clk 0:00:11]} 39. Kg3 {[%clk 0:00:05]}  Ra2 {[%clk 0:00:11]} 40. Re3 {[%clk 0:00:05]}  Rg2+ {[%clk 0:00:11]} 41. Kh4 {[%clk 0:00:06]}  e5 {[%clk 0:00:09]} 42. Bb6 {[%clk 0:00:05]}  g5+ {[%clk 0:00:09]} 43. Kh5 {[%clk 0:00:04]}  Kh7 {[%clk 0:00:09]} 44. Rxe5 {[%clk 0:00:01]}  Bf7# {[%clk 0:00:09]} 0-1


[Site "https://www.chess.com"]

[Event "Titled Tuesday Blitz June 28 Late 2022"]
[White "Mendonca, Mateus Nakajo"]
[Black "Lashkin, Jegor"]
[WhiteFideId "2110954"]
[BlackFideId "13907808"]
[WhiteElo "2185"]
[BlackElo "2368"]
[Result "0-1"]
[Round "02"]
[TimeControl "180+1"]
[Date "2022.06.28"]
[WhiteClock "0:00:10"]
[BlackClock "0:00:03"]

1. d4 {[%clk 0:03:00]}  Nf6 {[%clk 0:03:00]} 2. Nf3 {[%clk 0:03:00]}  d5 {[%clk 0:03:00]} 3. c4 {[%clk 0:03:00]}  e6 {[%clk 0:03:00]} 4. g3 {[%clk 0:02:59]}  dxc4 {[%clk 0:03:00]} 5. Bg2 {[%clk 0:02:58]}  c6 {[%clk 0:03:01]} 6. O-O {[%clk 0:02:56]}  b5 {[%clk 0:03:01]} 7. b3 {[%clk 0:02:54]}  cxb3 {[%clk 0:03:00]} 8. Qxb3 {[%clk 0:02:53]}  Be7 {[%clk 0:02:55]} 9. Bb2 {[%clk 0:02:52]}  O-O {[%clk 0:02:55]} 10. a4 {[%clk 0:02:49]}  b4 {[%clk 0:02:55]} 11. a5 {[%clk 0:02:48]}  Bb7 {[%clk 0:02:49]} 12. Ne5 {[%clk 0:02:43]}  Nd5 {[%clk 0:02:44]} 13. Nd2 {[%clk 0:02:39]}  Na6 {[%clk 0:02:39]} 14. Rfc1 {[%clk 0:02:29]}  Rc8 {[%clk 0:02:39]} 15. Ne4 {[%clk 0:02:23]}  c5 {[%clk 0:02:32]} 16. Nd3 {[%clk 0:02:05]}  cxd4 {[%clk 0:02:19]} 17. Rxc8 {[%clk 0:02:05]}  Qxc8 {[%clk 0:02:18]} 18. Bxd4 {[%clk 0:02:05]}  Qa8 {[%clk 0:02:03]} 19. Qb2 {[%clk 0:01:29]}  Nc3 {[%clk 0:01:21]} 20. Bxc3 {[%clk 0:00:56]}  bxc3 {[%clk 0:01:17]} 21. Nf6+ {[%clk 0:00:52]}  Bxf6 {[%clk 0:01:15]} 22. Qxb7 {[%clk 0:00:52]}  Qxb7 {[%clk 0:01:10]} 23. Bxb7 {[%clk 0:00:53]}  Nc7 {[%clk 0:01:10]} 24. e4 {[%clk 0:00:44]}  Bd4 {[%clk 0:01:09]} 25. Nb4 {[%clk 0:00:40]}  Nb5 {[%clk 0:00:54]} 26. Nc6 {[%clk 0:00:34]}  e5 {[%clk 0:00:49]} 27. Kf1 {[%clk 0:00:32]}  Nd6 {[%clk 0:00:45]} 28. a6 {[%clk 0:00:30]}  Re8 {[%clk 0:00:21]} 29. f3 {[%clk 0:00:30]}  f5 {[%clk 0:00:18]} 30. Ke2 {[%clk 0:00:29]}  fxe4 {[%clk 0:00:17]} 31. fxe4 {[%clk 0:00:29]}  Nxe4 {[%clk 0:00:14]} 32. Kd3 {[%clk 0:00:27]}  Nc5+ {[%clk 0:00:11]} 33. Kc4 {[%clk 0:00:27]}  Ne6 {[%clk 0:00:06]} 34. Rf1 {[%clk 0:00:20]}  g6 {[%clk 0:00:05]} 35. Nb4 {[%clk 0:00:16]}  Kg7 {[%clk 0:00:05]} 36. Nd5 {[%clk 0:00:16]}  Nc5 {[%clk 0:00:05]} 37. Nxc3 {[%clk 0:00:14]}  Re7 {[%clk 0:00:03]} 38. Nd5 {[%clk 0:00:14]}  Rf7 {[%clk 0:00:02]} 39. Rb1 {[%clk 0:00:13]}  Ne4 {[%clk 0:00:03]} 40. Kd3 {[%clk 0:00:12]}  Nc5+ {[%clk 0:00:03]} 41. Kc4 {[%clk 0:00:13]}  Ne4 {[%clk 0:00:04]} 42. Kd3 {[%clk 0:00:13]}  Nd6 {[%clk 0:00:04]} 43. Ne3 {[%clk 0:00:10]}  Bb6 {[%clk 0:00:03]} 0-1


[Site "https://www.chess.com"]

[Event "Titled Tuesday Blitz June 28 Late 2022"]
[White "Novikova, Galina"]
[Black "Zivkovic, Nemanja"]
[WhiteFideId "4157095"]
[BlackFideId "942154"]
[WhiteElo "1863"]
[BlackElo "2372"]
[Result "1-0"]
[Round "02"]
[TimeControl "180+1"]
[Date "2022.06.29"]
[WhiteClock "0:01:31"]
[BlackClock "0:02:04"]

1. e4 {[%clk 0:03:00]}  c5 {[%clk 0:02:52]} 2. Nf3 {[%clk 0:03:00]}  d6 {[%clk 0:02:50]} 3. d4 {[%clk 0:03:00]}  cxd4 {[%clk 0:02:51]} 4. Nxd4 {[%clk 0:03:00]}  Nf6 {[%clk 0:02:51]} 5. Nc3 {[%clk 0:03:01]}  a6 {[%clk 0:02:51]} 6. h3 {[%clk 0:03:02]}  e6 {[%clk 0:02:50]} 7. g4 {[%clk 0:03:02]}  h6 {[%clk 0:02:50]} 8. Bg2 {[%clk 0:03:02]}  g5 {[%clk 0:02:47]} 9. Be3 {[%clk 0:02:58]}  Nbd7 {[%clk 0:02:45]} 10. Qe2 {[%clk 0:02:57]}  Ne5 {[%clk 0:02:45]} 11. O-O-O {[%clk 0:02:57]}  b5 {[%clk 0:02:45]} 12. f4 {[%clk 0:02:48]}  gxf4 {[%clk 0:02:33]} 13. Bxf4 {[%clk 0:02:48]}  Nfd7 {[%clk 0:02:29]} 14. Nf3 {[%clk 0:02:21]}  Qc7 {[%clk 0:02:23]} 15. Nxe5 {[%clk 0:02:06]}  Nxe5 {[%clk 0:02:20]} 16. Qf2 {[%clk 0:01:42]}  Bb7 {[%clk 0:02:18]} 17. Kb1 {[%clk 0:01:42]}  O-O-O {[%clk 0:02:08]} 18. Bxe5 {[%clk 0:01:32]}  dxe5 {[%clk 0:02:03]} 19. Rxd8+ {[%clk 0:01:33]}  Kxd8 {[%clk 0:02:04]} 20. Qf6+ {[%clk 0:01:31]} 1-0


[Site "https://www.chess.com"]

[Event "Titled Tuesday Blitz June 28 Late 2022"]
[White "Oye-Stromberg, Alexander"]
[Black "De Souza, Cristiano Gomes"]
[WhiteFideId "1525999"]
[BlackFideId "2151758"]
[WhiteElo "1958"]
[BlackElo "2068"]
[Result "1-0"]
[Round "02"]
[TimeControl "180+1"]
[Date "2022.06.29"]
[WhiteClock "0:01:20"]
[BlackClock "0:00:34"]

1. d4 {[%clk 0:03:00]}  Nf6 {[%clk 0:02:59]} 2. c4 {[%clk 0:03:01]}  g6 {[%clk 0:02:57]} 3. Nc3 {[%clk 0:03:01]}  Bg7 {[%clk 0:02:58]} 4. e4 {[%clk 0:03:01]}  d6 {[%clk 0:02:58]} 5. Nf3 {[%clk 0:03:01]}  O-O {[%clk 0:02:58]} 6. Be2 {[%clk 0:03:01]}  e5 {[%clk 0:02:58]} 7. d5 {[%clk 0:03:01]}  Nbd7 {[%clk 0:02:55]} 8. Be3 {[%clk 0:02:59]}  Nc5 {[%clk 0:02:52]} 9. Nd2 {[%clk 0:02:59]}  a5 {[%clk 0:02:52]} 10. g4 {[%clk 0:02:58]}  Nfd7 {[%clk 0:02:48]} 11. h4 {[%clk 0:02:57]}  b6 {[%clk 0:02:45]} 12. h5 {[%clk 0:02:57]}  Ba6 {[%clk 0:02:41]} 13. b3 {[%clk 0:02:55]}  Qe7 {[%clk 0:02:30]} 14. Qc2 {[%clk 0:02:54]}  f6 {[%clk 0:02:19]} 15. hxg6 {[%clk 0:02:52]}  hxg6 {[%clk 0:02:19]} 16. O-O-O {[%clk 0:02:51]}  Kf7 {[%clk 0:02:18]} 17. g5 {[%clk 0:02:39]}  Rh8 {[%clk 0:02:16]} 18. Bg4 {[%clk 0:02:38]}  Rxh1 {[%clk 0:02:13]} 19. Rxh1 {[%clk 0:02:37]}  Rh8 {[%clk 0:02:13]} 20. Rxh8 {[%clk 0:02:35]}  Bxh8 {[%clk 0:02:13]} 21. Nf3 {[%clk 0:02:34]}  Bc8 {[%clk 0:02:06]} 22. a3 {[%clk 0:02:29]}  Bg7 {[%clk 0:01:56]} 23. Qd1 {[%clk 0:02:27]}  Qe8 {[%clk 0:01:52]} 24. Qh1 {[%clk 0:02:21]}  Qh8 {[%clk 0:01:50]} 25. Qxh8 {[%clk 0:02:19]}  Bxh8 {[%clk 0:01:50]} 26. Kc2 {[%clk 0:02:17]}  Ke7 {[%clk 0:01:42]} 27. b4 {[%clk 0:01:58]}  axb4 {[%clk 0:01:41]} 28. axb4 {[%clk 0:01:59]}  Nb7 {[%clk 0:01:32]} 29. Nb5 {[%clk 0:01:57]}  Kd8 {[%clk 0:01:31]} 30. Na7 {[%clk 0:01:56]}  Bg7 {[%clk 0:01:09]} 31. Nh4 {[%clk 0:01:34]}  fxg5 {[%clk 0:01:01]} 32. Bxg5+ {[%clk 0:01:33]}  Bf6 {[%clk 0:01:00]} 33. Bxf6+ {[%clk 0:01:32]}  Nxf6 {[%clk 0:00:59]} 34. Bxc8 {[%clk 0:01:32]}  Nxe4 {[%clk 0:00:59]} 35. Bxb7 {[%clk 0:01:31]}  g5 {[%clk 0:00:57]} 36. Nc6+ {[%clk 0:01:28]}  Ke8 {[%clk 0:00:56]} 37. Nf3 {[%clk 0:01:28]}  g4 {[%clk 0:00:55]} 38. Nfxe5 {[%clk 0:01:27]}  dxe5 {[%clk 0:00:54]} 39. Nxe5 {[%clk 0:01:27]}  Nxf2 {[%clk 0:00:52]} 40. Kd2 {[%clk 0:01:26]}  Ke7 {[%clk 0:00:51]} 41. Ke2 {[%clk 0:01:24]}  Ne4 {[%clk 0:00:48]} 42. Nxg4 {[%clk 0:01:23]}  Nd6 {[%clk 0:00:48]} 43. Ba6 {[%clk 0:01:20]}  Kd7 {[%clk 0:00:47]} 44. Kd3 {[%clk 0:01:19]}  Nf7 {[%clk 0:00:43]} 45. Kd4 {[%clk 0:01:18]}  Kd6 {[%clk 0:00:43]} 46. Bb5 {[%clk 0:01:16]}  Nd8 {[%clk 0:00:39]} 47. Ne5 {[%clk 0:01:14]}  Ke7 {[%clk 0:00:36]} 48. Nc6+ {[%clk 0:01:13]}  Nxc6+ {[%clk 0:00:37]} 49. Bxc6 {[%clk 0:01:14]}  Kd6 {[%clk 0:00:36]} 50. c5+ {[%clk 0:01:15]}  bxc5+ {[%clk 0:00:36]} 51. bxc5+ {[%clk 0:01:16]}  Ke7 {[%clk 0:00:36]} 52. Ke5 {[%clk 0:01:17]}  Kd8 {[%clk 0:00:35]} 53. Ke6 {[%clk 0:01:17]}  Kc8 {[%clk 0:00:34]} 54. Ke7 {[%clk 0:01:18]}  Kb8 {[%clk 0:00:34]} 55. d6 {[%clk 0:01:19]}  cxd6 {[%clk 0:00:34]} 56. cxd6 {[%clk 0:01:20]} 1-0


[Site "https://www.chess.com"]

[Event "Titled Tuesday Blitz June 28 Late 2022"]
[White "Ozates, Tuna"]
[Black "Coelho, Ramyres Santana"]
[WhiteFideId "6354521"]
[BlackFideId "2120690"]
[WhiteElo "1887"]
[BlackElo "1888"]
[Result "1-0"]
[Round "02"]
[TimeControl "180+1"]
[Date "2022.06.29"]
[WhiteClock "0:01:35"]
[BlackClock "0:00:50"]

1. e4 {[%clk 0:03:00]}  c5 {[%clk 0:02:59]} 2. Nf3 {[%clk 0:03:00]}  d6 {[%clk 0:02:59]} 3. Bb5+ {[%clk 0:03:00]}  Nd7 {[%clk 0:02:59]} 4. O-O {[%clk 0:02:59]}  a6 {[%clk 0:03:00]} 5. Bc4 {[%clk 0:02:58]}  e6 {[%clk 0:02:57]} 6. c3 {[%clk 0:02:53]}  b5 {[%clk 0:02:56]} 7. Bb3 {[%clk 0:02:53]}  Ngf6 {[%clk 0:02:57]} 8. d3 {[%clk 0:02:53]}  Be7 {[%clk 0:02:57]} 9. Nbd2 {[%clk 0:02:54]}  O-O {[%clk 0:02:57]} 10. a4 {[%clk 0:02:54]}  Bb7 {[%clk 0:02:56]} 11. Qe2 {[%clk 0:02:54]}  Ne5 {[%clk 0:02:55]} 12. Rd1 {[%clk 0:02:52]}  c4 {[%clk 0:02:52]} 13. dxc4 {[%clk 0:02:51]}  bxc4 {[%clk 0:02:45]} 14. Nxe5 {[%clk 0:02:26]}  cxb3 {[%clk 0:02:43]} 15. Nxb3 {[%clk 0:02:19]}  Qb6 {[%clk 0:02:36]} 16. Nc4 {[%clk 0:02:19]}  Qxb3 {[%clk 0:02:34]} 17. Ra3 {[%clk 0:02:19]}  Qxd1+ {[%clk 0:02:27]} 18. Qxd1 {[%clk 0:02:20]}  d5 {[%clk 0:02:27]} 19. Rb3 {[%clk 0:02:12]}  Bc6 {[%clk 0:02:11]} 20. Nb6 {[%clk 0:02:10]}  Rab8 {[%clk 0:02:08]} 21. e5 {[%clk 0:02:10]}  Ne4 {[%clk 0:02:00]} 22. Be3 {[%clk 0:02:03]}  Rxb6 {[%clk 0:01:52]} 23. Rxb6 {[%clk 0:02:01]}  Rc8 {[%clk 0:01:40]} 24. Rxa6 {[%clk 0:01:51]}  Nc5 {[%clk 0:01:34]} 25. Ra7 {[%clk 0:01:47]}  Bf8 {[%clk 0:01:21]} 26. b4 {[%clk 0:01:42]}  Nxa4 {[%clk 0:01:14]} 27. Rxa4 {[%clk 0:01:42]}  Bxa4 {[%clk 0:01:15]} 28. Qxa4 {[%clk 0:01:43]}  Rxc3 {[%clk 0:01:14]} 29. g3 {[%clk 0:01:37]}  Rc4 {[%clk 0:01:13]} 30. Qe8 {[%clk 0:01:36]}  Rc8 {[%clk 0:00:50]} 31. Qxc8 {[%clk 0:01:35]} 1-0


[Site "https://www.chess.com"]

[Event "Titled Tuesday Blitz June 28 Late 2022"]
[White "Paravyan, David"]
[Black "Hoffmann, Asa"]
[WhiteFideId "4194985"]
[BlackFideId "2001470"]
[WhiteElo "2569"]
[BlackElo "2117"]
[Result "1-0"]
[Round "02"]
[TimeControl "180+1"]
[Date "2022.06.29"]
[WhiteClock "0:01:57"]
[BlackClock "0:00:46"]

1. e4 {[%clk 0:03:00]}  d6 {[%clk 0:02:56]} 2. d4 {[%clk 0:03:00]}  Nf6 {[%clk 0:02:55]} 3. Nc3 {[%clk 0:03:01]}  c6 {[%clk 0:02:50]} 4. h3 {[%clk 0:03:00]}  b5 {[%clk 0:02:48]} 5. Bd3 {[%clk 0:02:58]}  e5 {[%clk 0:02:46]} 6. Nce2 {[%clk 0:02:56]}  Be7 {[%clk 0:02:40]} 7. Nf3 {[%clk 0:02:57]}  a6 {[%clk 0:02:37]} 8. dxe5 {[%clk 0:02:56]}  dxe5 {[%clk 0:02:35]} 9. Nxe5 {[%clk 0:02:57]}  O-O {[%clk 0:02:34]} 10. O-O {[%clk 0:02:56]}  Bc5 {[%clk 0:02:32]} 11. Bg5 {[%clk 0:02:55]}  h6 {[%clk 0:02:26]} 12. Bh4 {[%clk 0:02:54]}  g5 {[%clk 0:02:26]} 13. Bg3 {[%clk 0:02:54]}  Nh5 {[%clk 0:02:25]} 14. Bh2 {[%clk 0:02:53]}  Qf6 {[%clk 0:02:20]} 15. Ng4 {[%clk 0:02:52]}  Qg7 {[%clk 0:02:18]} 16. e5 {[%clk 0:02:52]}  Be6 {[%clk 0:02:11]} 17. Nc3 {[%clk 0:02:52]}  Nd7 {[%clk 0:02:06]} 18. Ne4 {[%clk 0:02:52]}  Be7 {[%clk 0:02:02]} 19. Kh1 {[%clk 0:02:48]}  Rad8 {[%clk 0:02:01]} 20. Qf3 {[%clk 0:02:46]}  c5 {[%clk 0:01:52]} 21. c3 {[%clk 0:02:42]}  c4 {[%clk 0:01:45]} 22. Bc2 {[%clk 0:02:40]}  Nc5 {[%clk 0:01:43]} 23. Nef6+ {[%clk 0:02:38]}  Bxf6 {[%clk 0:01:40]} 24. Nxf6+ {[%clk 0:02:34]}  Nxf6 {[%clk 0:01:39]} 25. exf6 {[%clk 0:02:29]}  Qh8 {[%clk 0:01:37]} 26. Rad1 {[%clk 0:02:22]}  h5 {[%clk 0:01:26]} 27. Bd6 {[%clk 0:02:20]}  Rxd6 {[%clk 0:01:22]} 28. Rxd6 {[%clk 0:02:21]}  Qh6 {[%clk 0:01:19]} 29. Qe3 {[%clk 0:02:16]}  Nd7 {[%clk 0:01:13]} 30. f4 {[%clk 0:02:01]}  Qxf6 {[%clk 0:01:04]} 31. f5 {[%clk 0:01:59]}  Ne5 {[%clk 0:00:49]} 32. Kg1 {[%clk 0:01:59]}  Re8 {[%clk 0:00:46]} 33. fxe6 {[%clk 0:01:57]} 1-0


[Site "https://www.chess.com"]

[Event "Titled Tuesday Blitz June 28 Late 2022"]
[White "Paszewski, Mateusz"]
[Black "Uddin, Mubassar"]
[WhiteFideId "1141058"]
[BlackFideId "2093944"]
[WhiteElo "2171"]
[BlackElo "2051"]
[Result "1-0"]
[Round "02"]
[TimeControl "180+1"]
[Date "2022.06.29"]
[WhiteClock "0:00:09"]
[BlackClock "0:00:09"]

1. Nf3 {[%clk 0:03:00]}  d5 {[%clk 0:03:00]} 2. e3 {[%clk 0:03:01]}  Nf6 {[%clk 0:03:00]} 3. c4 {[%clk 0:03:01]}  c6 {[%clk 0:03:01]} 4. Nc3 {[%clk 0:03:01]}  e6 {[%clk 0:03:01]} 5. b3 {[%clk 0:03:00]}  Nbd7 {[%clk 0:03:01]} 6. Bb2 {[%clk 0:03:00]}  Bd6 {[%clk 0:03:02]} 7. Qc2 {[%clk 0:03:00]}  Qe7 {[%clk 0:03:02]} 8. Be2 {[%clk 0:02:59]}  O-O {[%clk 0:02:59]} 9. Rg1 {[%clk 0:02:57]}  e5 {[%clk 0:02:47]} 10. g4 {[%clk 0:02:50]}  Nc5 {[%clk 0:01:45]} 11. g5 {[%clk 0:02:46]}  Nfe4 {[%clk 0:01:42]} 12. cxd5 {[%clk 0:02:46]}  Nxc3 {[%clk 0:01:40]} 13. Bxc3 {[%clk 0:02:45]}  cxd5 {[%clk 0:01:35]} 14. d4 {[%clk 0:02:44]}  Ne4 {[%clk 0:01:26]} 15. dxe5 {[%clk 0:02:39]}  Bb4 {[%clk 0:01:15]} 16. Bxb4 {[%clk 0:02:36]}  Qxb4+ {[%clk 0:01:15]} 17. Kf1 {[%clk 0:02:36]}  Bh3+ {[%clk 0:01:14]} 18. Rg2 {[%clk 0:02:36]}  Rac8 {[%clk 0:01:05]} 19. Qd3 {[%clk 0:02:29]}  Rfd8 {[%clk 0:00:57]} 20. Kg1 {[%clk 0:02:20]}  Bxg2 {[%clk 0:00:57]} 21. Kxg2 {[%clk 0:02:21]}  Qc3 {[%clk 0:00:56]} 22. Qd1 {[%clk 0:02:20]}  Qb2 {[%clk 0:00:51]} 23. Qe1 {[%clk 0:01:59]}  Rc2 {[%clk 0:00:47]} 24. Nd4 {[%clk 0:01:59]}  Rd2 {[%clk 0:00:42]} 25. Rb1 {[%clk 0:01:49]}  Qxa2 {[%clk 0:00:42]} 26. Ra1 {[%clk 0:01:50]}  Qb2 {[%clk 0:00:38]} 27. Rb1 {[%clk 0:01:50]}  Qa3 {[%clk 0:00:37]} 28. Bf3 {[%clk 0:01:42]}  Qa2 {[%clk 0:00:23]} 29. Bxe4 {[%clk 0:01:38]}  dxe4 {[%clk 0:00:22]} 30. Ra1 {[%clk 0:01:36]}  Qb2 {[%clk 0:00:23]} 31. Rxa7 {[%clk 0:01:34]}  g6 {[%clk 0:00:22]} 32. Rxb7 {[%clk 0:01:34]}  R8xd4 {[%clk 0:00:22]} 33. exd4 {[%clk 0:01:32]}  Qxd4 {[%clk 0:00:23]} 34. e6 {[%clk 0:01:03]}  e3 {[%clk 0:00:23]} 35. Rxf7 {[%clk 0:00:43]}  Rxf2+ {[%clk 0:00:18]} 36. Rxf2 {[%clk 0:00:43]}  exf2 {[%clk 0:00:18]} 37. Qxf2 {[%clk 0:00:44]}  Qd5+ {[%clk 0:00:18]} 38. Qf3 {[%clk 0:00:42]}  Qxe6 {[%clk 0:00:19]} 39. h3 {[%clk 0:00:23]}  Qe5 {[%clk 0:00:15]} 40. h4 {[%clk 0:00:13]}  Qb2+ {[%clk 0:00:15]} 41. Kh3 {[%clk 0:00:14]}  Qe5 {[%clk 0:00:12]} 42. Qd3 {[%clk 0:00:08]}  Qe6+ {[%clk 0:00:11]} 43. Kg3 {[%clk 0:00:07]}  Qe5+ {[%clk 0:00:12]} 44. Kf3 {[%clk 0:00:07]}  Qe6 {[%clk 0:00:10]} 45. Qc4 {[%clk 0:00:08]}  Qxc4 {[%clk 0:00:09]} 46. bxc4 {[%clk 0:00:09]}  Kf7 {[%clk 0:00:09]} 47. Ke4 {[%clk 0:00:09]} 1-0


[Site "https://www.chess.com"]